[Event "4NCL Div 1 2018-19"]
[Site "Daventry"]
[Date "2018.11.10"]
[Round "1"]
[White "Dargan, Paul A G"]
[Black "Chow, Samuel"]
[Result "0-1"]
[ECO "C06"]
[WhiteElo "2207"]
[BlackElo "2326"]
[Annotator "NA"]
[PlyCount "66"]
[EventDate "2018.11.10"]
[EventType "team-tourn"]
[EventCountry "GBR"]
[SourceTitle "playchess.com"]
[Source "ChessBase"]
[SourceQuality "1"]
[TimeControl "40/6000+30:3000+30"]

1. e4 {[%emt 0:00:00]} e6 {[%emt 0:00:00]} 2. d4 {[%emt 0:00:00]} d5 {[%emt 0:00:00]} 3. Nd2 {[%emt 0:00:00]} Nf6 {[%emt 0:00:11]} 4. e5 {[%emt 0:00:03]} Nfd7 {[%emt 0:00:13]} 5. c3 {[%emt 0:00:08]} c5 {[%emt 0:00:17]} 6. Bd3 {[%emt 0:00:09]} Nc6 {[%emt 0:00:15]} 7. Ne2 {[%emt 0:00:47]} cxd4 {[%emt 0:00:31]} 8. cxd4 {[%emt 0:00:07]} f6 {[%emt 0:00:26]} 9. exf6 {[%emt 0:00:49]} Qxf6 {[%emt 0:00:27]} 10. O-O {[%emt 0:00:37]} Bd6 {[%emt 0:00:14]} 11. Nf3 {[%emt 0:00:11]} h6 {[%emt 0:00:16]} 12. Ng3 {[%emt 0:03:43]} O-O {[%emt 0:00:20]} 13. Bc2 {[%emt 0:02:51] C06: French Tarrasch: 3...Nf6 4 e5 Nfd7 5 Bd3 main lines} Rf7 {[%emt 0:00:37]} 14. Be3 {[%emt 0:17:07]} Nf8 {[%emt 0:03:14]} 15. Qd2 {[%emt 0:09:08] LiveBook: 5 Games [#]} Rc7 $146 {[%emt 0:08:19]} ({Predecessor:} 15... Bd7 16. Nh5 Qd8 17. Bf4 Be8 18. Bxd6 Qxd6 19. Ng3 Qb4 20. Rad1 Qxd2 21. Rxd2 {½-½ (44) Spasov,V (2579)-Rusev,K (2521) Plovdiv 2008}) 16. Nh5 {[%emt 0:10:18]} Qf7 {[%emt 0:02:30]} 17. Bf4 {[%emt 0:01:57] [#]} e5 $1 {[%emt 0:03:36]} 18. dxe5 {[%emt 0:01:52]} Bb4 {[%emt 0:00:37]} 19. e6 {[%emt 0:01:51]} Qxh5 {[%emt 0:06:14]} 20. Qd3 {[%emt 0:03:36]} Re7 {[%emt 0:07:06]} 21. a3 {[%emt 0:00:08]} Ba5 {[%emt 0:01:15]} ({Weaker is} 21... Nxe6 22. Bg3 $17) 22. Bd6 {[%emt 0:02:26]} Rxe6 {[%emt 0:01:21]} 23. Bxf8 {[%emt 0:00:10]} Kxf8 {[%emt 0:00:06]} 24. Qh7 $19 {[%emt 0:00:48]} Kf7 {[%emt 0:22:26]} 25. Rad1 {[%emt 0:08:47]} Rf6 {[%emt 0:03:37]} 26. Bb3 {[%emt 0:22:29]} Be6 {[%emt 0:01:51]} 27. Rd3 {[%emt 0:05:11]} Rd8 {[%emt 0:05:11]} 28. Rfd1 {[%emt 0:00:36]} Rg6 {[%emt 0:12:35]} 29. Bc2 {[%emt 0:09:11]} Rxg2+ {[%emt 0:06:43]} 30. Kxg2 {[%emt 0:01:31]} Bf5 {[%emt 0:00:23]} 31. Rxd5 {[%emt 0:04:21]} Qg4+ {[%emt 0:00:33]} 32. Kf1 {[%emt 0:00:26]} Bxh7 {[%emt 0:01:08]} 33. Rxd8 {[%emt 0:01:40]} Bxd8 {[%emt 0:00:23]} 0-1

[Event "4NCL Div 1 2018-19"]
[Site "Daventry"]
[Date "2018.11.10"]
[Round "1"]
[White "Hansen, Hans-Peter"]
[Black "Fitzsimons, David"]
[Result "0-1"]
[ECO "E94"]
[WhiteElo "2192"]
[BlackElo "2301"]
[Annotator "ChessBase"]
[PlyCount "112"]
[EventDate "2018.11.10"]
[EventType "team-tourn"]
[EventCountry "GBR"]
[SourceTitle "playchess.com"]
[Source "ChessBase"]
[SourceQuality "1"]
[TimeControl "40/6000+30:3000+30"]

1. c4 {[%emt 0:00:00]} Nf6 {[%emt 0:00:00]} 2. Nc3 {[%emt 0:00:00]} g6 {[%emt 0:00:00]} 3. e4 {[%emt 0:01:44]} d6 {[%emt 0:00:13]} 4. d4 {[%emt 0:00:06]} Bg7 {[%emt 0:00:12]} 5. Be2 {[%emt 0:00:27]} O-O {[%emt 0:00:09]} 6. Nf3 {[%emt 0:01:11]} Qe8 {[%emt 0:00:46]} 7. Bg5 {[%emt 0:03:27]} Na6 {[%emt 0:04:56]} 8. O-O {[%emt 0:09:52]} h6 {[%emt 0:08:08]} 9. Bh4 {[%emt 0:06:45]} e5 {[%emt 0:09:46]} 10. d5 {[%emt 0:20:13]} Nh5 {[%emt 0:03:03]} 11. Ne1 {[%emt 0:04:34]} Nf4 {[%emt 0:00:21]} 12. Nd3 {[%emt 0:00:15]} g5 {[%emt 0:04:40]} 13. Bg3 {[%emt 0:00:09]} f5 {[%emt 0:00:30]} 14. exf5 {[%emt 0:06:30]} Bxf5 {[%emt 0:01:56]} 15. f3 {[%emt 0:05:04]} Qg6 {[%emt 0:05:39]} 16. Nf2 {[%emt 0:04:24]} Nc5 {[%emt 0:08:25]} 17. Qd2 {[%emt 0:08:40]} a5 {[%emt 0:05:53]} 18. Rfe1 {[%emt 0:05:29]} Rf7 {[%emt 0:12:32]} 19. Bf1 {[%emt 0:02:35]} Raf8 {[%emt 0:00:31]} 20. Nce4 {[%emt 0:04:35]} Nxe4 {[%emt 0:06:23]} 21. fxe4 {[%emt 0:00:07]} Bc8 {[%emt 0:00:14]} 22. Qxa5 {[%emt 0:04:13]} h5 {[%emt 0:04:26]} 23. Nd1 {[%emt 0:04:24]} h4 {[%emt 0:04:59]} 24. Bf2 {[%emt 0:01:10]} h3 {[%emt 0:07:28]} 25. g3 {[%emt 0:02:37]} Ng2 {[%emt 0:00:30]} 26. Bxg2 {[%emt 0:05:14]} hxg2 {[%emt 0:00:20]} 27. Re2 {[%emt 0:00:47]} Bg4 {[%emt 0:00:33]} 28. Qe1 {[%emt 0:00:28]} Bxe2 {[%emt 0:03:39]} 29. Qxe2 {[%emt 0:00:02]} g4 {[%emt 0:00:21]} 30. Rc1 {[%emt 0:02:40]} Rf3 {[%emt 0:02:39]} 31. Rc2 {[%emt 0:02:32]} R8f6 {[%emt 0:01:26]} 32. Kxg2 {[%emt 0:01:24]} Qh5 {[%emt 0:01:56]} 33. Kg1 {[%emt 0:02:08]} Qh3 {[%emt 0:01:52]} 34. Qf1 {[%emt 0:00:14]} Bh6 {[%emt 0:00:48]} 35. Qxh3 {[%emt 0:00:46]} gxh3 {[%emt 0:00:02]} 36. Kf1 {[%emt 0:00:55]} Kf7 {[%emt 0:03:10]} 37. Ke2 {[%emt 0:00:09]} b6 {[%emt 0:01:56]} 38. b4 {[%emt 0:01:23]} Ke8 {[%emt 0:02:36]} 39. c5 {[%emt 0:00:27]} dxc5 {[%emt 0:04:55]} 40. bxc5 {[%emt 0:00:04]} bxc5 {[%emt 0:00:35]} 41. Rxc5 {[%emt 0:06:07]} Ra3 {[%emt 0:02:41]} 42. Nc3 {[%emt 0:03:00]} Rb6 {[%emt 0:05:56]} 43. Rxc7 {[%emt 0:24:17]} Rb2+ {[%emt 0:00:53]} 44. Kf1 {[%emt 0:00:52]} Bd2 {[%emt 0:01:17]} 45. Nd1 {[%emt 0:04:04]} Rb1 {[%emt 0:00:35]} 46. Rc2 {[%emt 0:06:39]} Rxd1+ {[%emt 0:00:17]} 47. Ke2 {[%emt 0:00:04]} Rh1 {[%emt 0:00:22]} 48. Rxd2 {[%emt 0:00:14]} Rxh2 {[%emt 0:00:24]} 49. Rb2 {[%emt 0:03:27]} Rxg3 {[%emt 0:02:11]} 50. Rb8+ {[%emt 0:01:21]} Kd7 {[%emt 0:00:06]} 51. Rb7+ {[%emt 0:00:23]} Kc8 {[%emt 0:00:06]} 52. Rf7 {[%emt 0:00:17]} Ra3 {[%emt 0:00:18]} 53. d6 {[%emt 0:00:49]} Rxa2+ {[%emt 0:00:09]} 54. Ke3 {[%emt 0:00:19]} Ra3+ {[%emt 0:01:25]} 55. Ke2 {[%emt 0:01:02]} Rg2 {[%emt 0:00:18]} 56. Kf1 {[%emt 0:03:05]} Ra1+ {[%emt 0:00:06]} 0-1

[Event "4NCL Div 1 2018-19"]
[Site "Daventry"]
[Date "2018.11.10"]
[Round "1"]
[White "Zeidler, Sven P."]
[Black "Taylor, Martin R"]
[Result "1/2-1/2"]
[ECO "C47"]
[WhiteElo "2179"]
[BlackElo "2337"]
[Annotator "NA"]
[PlyCount "92"]
[EventDate "2018.11.10"]
[EventType "team-tourn"]
[EventCountry "GBR"]
[SourceTitle "playchess.com"]
[Source "ChessBase"]
[SourceQuality "1"]
[TimeControl "40/6000+30:3000+30"]

1. e4 {[%emt 0:00:00]} Nf6 {[%emt 0:00:00]} 2. Nc3 {[%emt 0:00:00]} e5 {[%emt 0:00:00]} 3. Nf3 {[%emt 0:00:00]} Nc6 {[%emt 0:00:04]} 4. Be2 {[%emt 0:00:12]} d5 {[%emt 0:00:52]} 5. exd5 {[%emt 0:00:17]} Nxd5 {[%emt 0:00:08]} 6. O-O {[%emt 0:00:15]} Nxc3 {[%emt 0:00:37]} 7. bxc3 {[%emt 0:00:12]} e4 {[%emt 0:01:47] C47: Scotch Four Knights and Four Knights with 4 g3} 8. Nd4 {[%emt 0:01:00]} (8. Ne1 Bd6 9. f3 f5 10. fxe4 fxe4 11. Rb1 Qe7 12. d4 exd3 13. cxd3 Bd7 14. Rxb7 O-O-O 15. Rb2 {1-0 (29) Van Foreest,J (2629)-Giri,A (2752) Amstelveen 2017}) 8... Nxd4 {[%emt 0:01:33]} 9. cxd4 {[%emt 0:00:03]} Qxd4 {[%emt 0:00:26]} 10. c3 {[%emt 0:00:06]} Qd5 {[%emt 0:01:33]} 11. d4 {[%emt 0:01:02]} Be7 {[%emt 0:17:57]} 12. f3 $146 {[%emt 0:00:24]} ({Predecessor:} 12. c4 Qd8 13. f3 Bf6 14. Be3 c5 15. d5 exf3 16. Bxf3 Bxa1 17. Qxa1 O-O 18. Bxc5 Re8 19. Bh5 f6 20. Bxe8 Qxe8 21. Re1 Qg6 {½-½ (21) Yeritsyan,H (2149)-Tate,A (2399) Batumi 2018}) 12... O-O {[%emt 0:13:12]} 13. fxe4 Qxe4 {[%emt 0:01:28]} 14. Bf3 {[%emt 0:13:14]} Qg6 {[%emt 0:04:37]} 15. Bf4 {[%emt 0:17:35]} Bd6 {[%emt 0:08:21]} 16. Bxd6 {[%emt 0:03:03]} Qxd6 {[%emt 0:01:37]} 17. Rb1 {[%emt 0:01:04]} c6 {[%emt 0:04:18]} 18. a4 {[%emt 0:06:12]} Rb8 {[%emt 0:10:21]} 19. Qb3 {[%emt 0:06:56]} Be6 {[%emt 0:09:12]} 20. Qb4 {[%emt 0:00:48]} Rfd8 {[%emt 0:02:30]} 21. Qa5 {[%emt 0:06:35]} Bd5 {[%emt 0:24:40]} 22. Qxa7 {[%emt 0:22:26]} Ra8 {[%emt 0:00:15]} 23. Qb6 {[%emt 0:02:09]} Rxa4 {[%emt 0:01:40]} 24. Qxb7 {[%emt 0:01:29]} h6 {[%emt 0:02:50]} 25. Bxd5 {[%emt 0:09:20]} Qxd5 {[%emt 0:00:02]} 26. Qb3 {[%emt 0:00:35]} Ra7 {[%emt 0:02:02]} 27. Rfe1 {[%emt 0:06:00]} Rc7 {[%emt 0:00:21]} 28. Re5 {[%emt 0:01:00]} Qxb3 {[%emt 0:00:07]} 29. Rxb3 {[%emt 0:00:05]} Rd5 {[%emt 0:00:15]} 30. Rxd5 {[%emt 0:04:44]} cxd5 {[%emt 0:00:01]} 31. Kf2 {[%emt 0:02:01]} f6 {[%emt 0:01:02]} 32. Ke3 {[%emt 0:00:33]} Kf7 {[%emt 0:00:28]} 33. Kd3 {[%emt 0:00:32]} h5 {[%emt 0:00:28]} 34. Rb8 {[%emt 0:01:50]} g6 {[%emt 0:01:15]} 35. Rh8 {[%emt 0:02:56]} Ke6 {[%emt 0:00:14]} 36. g3 {[%emt 0:00:42]} Ra7 {[%emt 0:00:25]} 37. Rg8 {[%emt 0:00:19]} Kf5 {[%emt 0:00:31]} 38. Rd8 {[%emt 0:00:24]} Ke6 {[%emt 0:00:07]} 39. Rg8 {[%emt 0:00:15]} Kf5 {[%emt 0:01:11]} 40. Rd8 {[%emt 0:00:39]} Ke6 {[%emt 0:00:54]} 41. Re8+ {[%emt 0:51:54]} Kf5 {[%emt 0:50:25]} 42. Re2 {[%emt 0:00:00]} Ra6 {[%emt 0:00:00]} 43. h3 {[%emt 0:00:00]} Ra1 {[%emt 0:00:00]} 44. Rf2+ {[%emt 0:00:00]} Ke6 {[%emt 0:00:00]} 45. Re2+ {[%emt 0:00:00]} Kf5 $11 {[%emt 0:00:00]} 46. Rf2+ {[%emt 0:00:00]} Ke6 {[%emt 0:00:07] Ke4 [%emt 00:01:07] Ke5+} 1/2-1/2

[Event "4NCL Div 1 2018-19"]
[Site "Daventry"]
[Date "2018.11.10"]
[Round "1"]
[White "Makkar, Rajat"]
[Black "Kolbus, Dietmar"]
[Result "1/2-1/2"]
[ECO "D76"]
[WhiteElo "2173"]
[BlackElo "2305"]
[Annotator "NA"]
[PlyCount "76"]
[EventDate "2018.11.10"]
[EventType "team-tourn"]
[EventCountry "GBR"]
[SourceTitle "playchess.com"]
[Source "ChessBase"]
[SourceQuality "1"]
[TimeControl "40/6000+30:3000+30"]

1. d4 {[%emt 0:00:00]} Nf6 {[%emt 0:00:00]} 2. c4 {[%emt 0:00:00]} g6 {[%emt 0:00:00]} 3. g3 {[%emt 0:00:33]} Bg7 {[%emt 0:01:08]} 4. Bg2 {[%emt 0:00:24]} d5 {[%emt 0:00:08]} 5. cxd5 {[%emt 0:03:45]} Nxd5 {[%emt 0:00:14]} 6. Nf3 {[%emt 0:00:28]} Nb6 {[%emt 0:00:19]} 7. O-O {[%emt 0:01:06]} Nc6 {[%emt 0:00:14]} 8. e3 {[%emt 0:01:38]} O-O {[%emt 0:00:13]} 9. Nc3 {[%emt 0:01:05]} e5 {[%emt 0:02:24]} 10. d5 {[%emt 0:02:49]} Na5 {[%emt 0:00:06]} 11. e4 {[%emt 0:01:39]} c6 {[%emt 0:00:09]} 12. dxc6 {[%emt 0:11:36]} Nxc6 {[%emt 0:00:40]} 13. b3 {[%emt 0:06:23] D76: Fianchetto Grünfeld: Main Line with 7...Nb6} Bg4 {[%emt 0:07:21]} 14. Ba3 {[%emt 0:06:34]} (14. h3 Qxd1 15. Rxd1 Bxf3 16. Bxf3 Nd4 17. Kg2 Rac8 18. Bd2 Rfd8 19. Rac1 Rc6 20. Bg5 Rdc8 {1-0 (62) Pereira,R (2420)-Fernandes,A (2403) Maia 2018}) 14... Qxd1 {[%emt 0:04:09]} 15. Raxd1 $146 {[%emt 0:10:04]} ({Predecessor:} 15. Rfxd1 Rfd8 16. Rxd8+ Rxd8 17. Rd1 Nd4 18. Kh1 Bf6 19. Rd3 Nxf3 20. Rxd8+ Bxd8 {½-½ (44) Helbig,J (2180)-Herbrechtsmeier,C (2280) Germany 1998}) 15... Rfd8 {[%emt 0:01:31]} 16. h3 {[%emt 0:01:45]} Bxf3 {[%emt 0:00:38]} 17. Bxf3 {[%emt 0:00:05]} Nd4 {[%emt 0:00:16]} 18. Kg2 {[%emt 0:04:00]} Bf8 {[%emt 0:00:21]} 19. Bxf8 {[%emt 0:02:50]} Kxf8 {[%emt 0:00:44]} 20. Rd3 {[%emt 0:15:01]} Ke7 {[%emt 0:00:42]} 21. Rfd1 {[%emt 0:00:10]} h5 {[%emt 0:02:24]} 22. Ne2 {[%emt 0:04:27]} Nc6 {[%emt 0:08:59]} 23. a3 $15 {[%emt 0:07:30]} Rxd3 {[%emt 0:01:44]} 24. Rxd3 {[%emt 0:00:02]} Rd8 {[%emt 0:00:37]} 25. Rxd8 {[%emt 0:01:25]} Kxd8 {[%emt 0:00:03]} 26. Nc3 {[%emt 0:03:27]} Nd4 {[%emt 0:00:14]} 27. Bd1 {[%emt 0:00:07]} Ke7 {[%emt 0:02:19]} 28. f4 {[%emt 0:01:26]} Kd6 {[%emt 0:00:20]} 29. Kf2 {[%emt 0:00:52]} a5 {[%emt 0:11:57]} 30. Ne2 {[%emt 0:05:46]} Nb5 {[%emt 0:03:13]} 31. a4 {[%emt 0:01:21]} Nc7 {[%emt 0:00:18]} 32. Nc1 {[%emt 0:02:38]} Na6 {[%emt 0:07:08]} 33. Nd3 {[%emt 0:02:26]} Nd7 {[%emt 0:00:12]} 34. Ke3 {[%emt 0:01:44]} Nac5 {[%emt 0:00:51]} 35. Bc2 {[%emt 0:00:53]} Ne6 {[%emt 0:10:23]} 36. Bd1 {[%emt 0:01:57]} Nec5 {[%emt 0:06:51]} 37. Bc2 {[%emt 0:00:30]} Ne6 {[%emt 0:03:24]} 38. Bd1 {[%emt 0:00:06]} Nec5 {[%emt 0:01:02]} 1/2-1/2

[Event "4NCL Div 1 2018-19"]
[Site "Daventry"]
[Date "2018.11.10"]
[Round "1"]
[White "Stepanyan, Henrik"]
[Black "Touzane, Olivier"]
[Result "1-0"]
[ECO "E61"]
[WhiteElo "2158"]
[BlackElo "2297"]
[Annotator "ChessBase"]
[PlyCount "97"]
[EventDate "2018.11.10"]
[EventType "team-tourn"]
[EventCountry "GBR"]
[SourceTitle "playchess.com"]
[Source "ChessBase"]
[SourceQuality "1"]
[TimeControl "40/6000+30:3000+30"]

1. d4 {[%emt 0:00:00]} Nf6 {[%emt 0:00:00]} 2. Nf3 {[%emt 0:00:23]} g6 {[%emt 0:01:42]} 3. c4 {[%emt 0:01:05]} d6 {[%emt 0:03:23]} 4. Nc3 {[%emt 0:00:52]} Bf5 {[%emt 0:01:09]} 5. g3 {[%emt 0:10:47]} Bg7 {[%emt 0:13:19]} 6. Bg2 {[%emt 0:00:31]} Qc8 {[%emt 0:08:02]} 7. Qb3 {[%emt 0:14:55]} Nc6 {[%emt 0:02:25]} 8. d5 {[%emt 0:13:33]} Nd8 {[%emt 0:02:58]} 9. Nd4 {[%emt 0:10:04]} Bh3 {[%emt 0:10:16]} 10. Qa4+ {[%emt 0:09:22]} Bd7 {[%emt 0:05:04]} 11. Qd1 {[%emt 0:00:04]} c5 {[%emt 0:10:07]} 12. Nf3 {[%emt 0:04:45]} a6 {[%emt 0:09:45]} 13. a4 {[%emt 0:01:58]} Bh3 {[%emt 0:04:19]} 14. O-O {[%emt 0:00:05]} h5 {[%emt 0:00:43]} 15. Bxh3 {[%emt 0:11:30]} Qxh3 {[%emt 0:00:06]} 16. Ng5 {[%emt 0:00:06]} Qd7 {[%emt 0:06:17]} 17. h4 {[%emt 0:00:35]} Ng4 {[%emt 0:11:42]} 18. Qc2 {[%emt 0:04:25]} Bd4 {[%emt 0:12:56]} 19. Bd2 {[%emt 0:12:05]} Rg8 {[%emt 0:00:26]} 20. a5 {[%emt 0:07:10]} f6 {[%emt 0:00:53]} 21. Nf3 {[%emt 0:02:08]} Ne5 {[%emt 0:00:46]} 22. Nxe5 {[%emt 0:03:36]} Qh3 {[%emt 0:02:55]} 23. Nf3 {[%emt 0:00:57]} Qxg3+ {[%emt 0:01:14]} 24. Kh1 {[%emt 0:00:02]} Qh3+ {[%emt 0:00:11]} 25. Nh2 {[%emt 0:00:36]} Qxh4 {[%emt 0:01:00]} 26. Qe4 {[%emt 0:00:49]} Bxf2 {[%emt 0:00:35]} 27. Qxh4 {[%emt 0:00:18]} Bxh4 {[%emt 0:00:05]} 28. Nf3 {[%emt 0:00:20]} Bg3 {[%emt 0:00:49]} 29. Ne4 {[%emt 0:00:01]} Be5 {[%emt 0:00:35]} 30. Nxe5 {[%emt 0:00:02]} fxe5 {[%emt 0:00:15]} 31. Ng5 {[%emt 0:00:17]} Rb8 {[%emt 0:00:35]} 32. Ra3 {[%emt 0:00:33]} Rf8 {[%emt 0:00:44]} 33. Rxf8+ {[%emt 0:01:02]} Kxf8 {[%emt 0:00:05]} 34. Kg2 {[%emt 0:00:07]} Ke8 {[%emt 0:00:55]} 35. Rb3 {[%emt 0:00:30]} Kd7 {[%emt 0:00:12]} 36. Ne4 {[%emt 0:01:24]} Nf7 {[%emt 0:00:33]} 37. Rf3 {[%emt 0:00:41]} Ke8 {[%emt 0:00:49]} 38. Rg3 {[%emt 0:00:22]} Nh8 {[%emt 0:00:28]} 39. Ng5 {[%emt 0:00:50]} b5 {[%emt 0:00:30]} 40. Rb3 {[%emt 0:00:31]} b4 {[%emt 0:00:36]} 41. Rf3 {[%emt 0:01:08]} Kd7 {[%emt 0:00:22]} 42. b3 {[%emt 0:05:34]} Rg8 {[%emt 0:01:39]} 43. Kh3 {[%emt 0:00:57]} Ke8 {[%emt 0:01:00]} 44. Kh4 {[%emt 0:02:36]} Rg7 {[%emt 0:02:08]} 45. Ne6 {[%emt 0:01:27]} Rg8 {[%emt 0:02:56]} 46. Be3 {[%emt 0:03:45]} e4 {[%emt 0:03:06]} 47. Rf1 {[%emt 0:07:34]} g5+ {[%emt 0:03:19]} 48. Kxh5 {[%emt 0:02:24]} Ng6 {[%emt 0:00:18]} 49. Kh6 {[%emt 0:00:20]} 1-0

[Event "4NCL Div 1 2018-19"]
[Site "Daventry"]
[Date "2018.11.10"]
[Round "1"]
[White "Dunn, Andrew"]
[Black "Gayson, Peter M"]
[Result "1/2-1/2"]
[ECO "A81"]
[WhiteElo "2155"]
[BlackElo "2170"]
[Annotator "NA"]
[PlyCount "74"]
[EventDate "2018.11.10"]
[EventType "team-tourn"]
[EventCountry "GBR"]
[SourceTitle "playchess.com"]
[Source "ChessBase"]
[SourceQuality "1"]
[TimeControl "40/6000+30:3000+30"]

1. d4 {[%emt 0:00:00]} f5 {[%emt 0:00:11]} 2. g3 {[%emt 0:00:17]} g6 {[%emt 0:00:24]} 3. h4 {[%emt 0:02:01]} Nh6 {[%emt 0:05:29]} 4. h5 {[%emt 0:01:31]} Nf7 {[%emt 0:01:09]} 5. hxg6 {[%emt 0:02:14]} hxg6 {[%emt 0:00:11]} 6. Rxh8 {[%emt 0:00:08]} Nxh8 {[%emt 0:00:05]} 7. Nc3 {[%emt 0:00:24]} d5 {[%emt 0:05:23]} 8. Bg2 {[%emt 0:00:29]} Be6 {[%emt 0:05:08]} 9. Nh3 {[%emt 0:01:44]} c6 {[%emt 0:03:30]} 10. Nf4 {[%emt 0:06:53]} Bf7 {[%emt 0:03:47]} 11. Nd3 {[%emt 0:25:49]} Nd7 {[%emt 0:01:47]} 12. Bf4 {[%emt 0:06:49]} Bg7 {[%emt 0:04:30]} 13. e3 {[%emt 0:06:17]} e6 $11 {[%emt 0:19:16]} 14. g4 {[%emt 0:20:00]} Qe7 {[%emt 0:07:00]} 15. Qf3 {[%emt 0:10:19]} e5 {[%emt 0:32:24]} 16. dxe5 {[%emt 0:03:07]} Bxe5 {[%emt 0:03:59]} 17. Nxe5 {[%emt 0:07:00]} Nxe5 {[%emt 0:00:20]} 18. Qh3 {[%emt 0:01:06]} O-O-O {[%emt 0:08:28]} 19. gxf5 {[%emt 0:00:46]} Qf6 {[%emt 0:01:18]} 20. fxg6+ {[%emt 0:01:34]} Be6 {[%emt 0:00:18]} 21. Qg3 {[%emt 0:00:50]} Nhxg6 {[%emt 0:03:32]} 22. Bg5 {[%emt 0:00:10]} Qf5 {[%emt 0:00:28]} 23. Bxd8 {[%emt 0:00:31]} Qxc2 {[%emt 0:00:25]} 24. Rd1 {[%emt 0:05:41]} Kxd8 {[%emt 0:01:41]} 25. Qg5+ {[%emt 0:04:04]} Kd7 {[%emt 0:00:14]} 26. Ne2 {[%emt 0:01:31]} Nd3+ {[%emt 0:00:56]} 27. Rxd3 {[%emt 0:00:06]} Qxd3 {[%emt 0:00:09]} 28. Nd4 {[%emt 0:00:59]} Qb1+ {[%emt 0:00:44]} 29. Ke2 {[%emt 0:00:09]} Qxb2+ {[%emt 0:00:27]} 30. Kf3 {[%emt 0:00:08]} Qb1 {[%emt 0:00:33]} 31. Kg3 {[%emt 0:00:31]} Ne7 {[%emt 0:00:51]} 32. Nxe6 {[%emt 0:00:27]} Kxe6 {[%emt 0:00:04]} 33. Bh3+ {[%emt 0:00:32]} Kf7 {[%emt 0:00:05]} 34. Qf4+ {[%emt 0:00:13]} Ke8 {[%emt 0:00:26]} 35. Qb8+ {[%emt 0:00:17]} Kf7 {[%emt 0:00:07]} 36. Qf4+ {[%emt 0:00:07]} Ke8 {[%emt 0:00:48]} 37. Qb8+ {[%emt 0:00:06]} Kf7 {[%emt 0:00:05]} 1/2-1/2

[Event "4NCL Div 1 2018-19"]
[Site "Daventry"]
[Date "2018.11.10"]
[Round "1"]
[White "Mihov, Filip"]
[Black "Tan, Justin"]
[Result "0-1"]
[ECO "E53"]
[WhiteElo "2154"]
[BlackElo "2508"]
[Annotator "ChessBase"]
[PlyCount "68"]
[EventDate "2018.11.10"]
[EventType "team-tourn"]
[EventCountry "GBR"]
[SourceTitle "playchess.com"]
[Source "ChessBase"]
[SourceQuality "1"]
[TimeControl "40/6000+30:3000+30"]

1. d4 {[%emt 0:00:00]} Nf6 {[%emt 0:00:00]} 2. c4 {[%emt 0:00:00]} e6 {[%emt 0:00:00]} 3. Nc3 {[%emt 0:00:05]} Bb4 {[%emt 0:00:00]} 4. e3 {[%emt 0:00:24]} O-O {[%emt 0:00:00]} 5. Bd3 {[%emt 0:00:11]} d5 {[%emt 0:00:00]} 6. a3 {[%emt 0:01:01]} Bxc3+ {[%emt 0:00:02]} 7. bxc3 {[%emt 0:00:05]} dxc4 {[%emt 0:00:05]} 8. Bxc4 {[%emt 0:00:15]} c5 {[%emt 0:00:03]} 9. Nf3 {[%emt 0:06:59]} Qc7 {[%emt 0:00:16]} 10. Qe2 {[%emt 0:01:37]} cxd4 {[%emt 0:06:58]} 11. Nxd4 {[%emt 0:10:32]} e5 {[%emt 0:00:25]} 12. Nc2 {[%emt 0:20:57]} Bf5 {[%emt 0:00:38]} 13. e4 {[%emt 0:22:28]} Bxe4 {[%emt 0:03:17]} 14. Ra2 {[%emt 0:04:17]} Rc8 {[%emt 0:04:50]} 15. Ne3 {[%emt 0:01:44]} Bxg2 {[%emt 0:10:23]} 16. Rg1 {[%emt 0:01:46]} Be4 {[%emt 0:01:11]} 17. h4 {[%emt 0:08:11]} Bg6 {[%emt 0:04:55]} 18. Bd2 {[%emt 0:13:34]} Nbd7 {[%emt 0:00:34]} 19. Rb2 {[%emt 0:01:06]} e4 {[%emt 0:01:23]} 20. Rg5 {[%emt 0:02:49]} Ne5 {[%emt 0:00:36]} 21. Rxe5 {[%emt 0:00:12]} Qxe5 {[%emt 0:00:06]} 22. Rb5 {[%emt 0:00:24]} Rc5 {[%emt 0:01:05]} 23. Rxb7 {[%emt 0:00:42]} Bh5 {[%emt 0:00:10]} 24. Qf1 {[%emt 0:00:24]} Rb8 {[%emt 0:00:25]} 25. Rb4 {[%emt 0:01:11]} a5 {[%emt 0:00:18]} 26. Rxb8+ {[%emt 0:00:21]} Qxb8 {[%emt 0:00:01]} 27. Be2 {[%emt 0:00:16]} Qb1+ {[%emt 0:01:17]} 28. Bd1 {[%emt 0:00:27]} Rc6 {[%emt 0:01:31]} 29. a4 {[%emt 0:00:44]} Rc5 {[%emt 0:04:39]} 30. Qa6 {[%emt 0:01:06]} h6 {[%emt 0:00:59]} 31. Qa7 {[%emt 0:01:43]} Rd5 {[%emt 0:01:42]} 32. c4 {[%emt 0:01:56]} Rd3 {[%emt 0:00:15]} 33. f3 {[%emt 0:05:57]} Bxf3 {[%emt 0:00:15]} 34. Qxa5 {[%emt 0:00:20]} Rxe3+ {[%emt 0:00:07]} 0-1